Workbook

Sheet intrastat
A1: DATA | B1: FURNIZOR | C1: CF | D1: CountryOfOrigin | E1: EXP | F1: DeliveryTermsCode | G1: ACode | H1: Bcode | I1: TransportCode | J1: INVNR | K1: VSCODE | L1: NAME | M1: GROUP | N1: UM | O1: Q | P1: PRICE | Q1: NETWEIGHT | R1: NETVALUE | S1: SUPPL | T1: SUPPLVALUE | U1: Ppacking | V1: Spacking | W1: Paper | X1: Plastic | Y1: Wooden
A2: 2023-08-07 | B2: ATLAS DIGITAL SA | C2: EL094154295 | D2: JP | E2: GR | F2: EXW | G2: 1 | H2: 1.1 | I2: 3 | K2: 32151100 | L2: ROLAND D-UA INK BK, 500cc | N2: Buc | O2: 2 | P2: 240.96 | Q2: =0.94*2 -> 1.88 | R2: 481.92 | S2: 2 | T2: =303*0.1 -> 30.3
A3: 2023-08-07 | B3: ATLAS DIGITAL SA | C3: EL094154295 | D3: JP | E3: GR | F3: EXW | G3: 1 | H3: 1.1 | I3: 3 | K3: 32151900 | L3: ROLAND MAX2 ESL4-440 MG | N3: Buc | O3: 2 | P3: 396.58 | Q3: 1.24 | R3: 793.16 | S3: 2
A4: 2023-08-07 | B4: ATLAS DIGITAL SA | C4: EL094154295 | D4: JP | E4: GR | F4: EXW | G4: 1 | H4: 1.1 | I4: 3 | K4: 32151900 | L4: ROLAND TE2 INK CY 750cc | N4: Buc | O4: 5 | P4: 286.14 | Q4: 8.55 | R4: 1430.7 | S4: 2
A5: 2023-08-07 | B5: ATLAS DIGITAL SA | C5: EL094154295 | D5: JP | E5: GR | F5: EXW | G5: 1 | H5: 1.1 | I5: 3 | K5: 32151900 | L5: ROLAND UV PRIMER METAL CMR-790 (1000 ml) | N5: Buc | O5: 1 | P5: 115.46 | Q5: 0.68 | R5: 115.46 | S5: 2
A6: 2023-08-07 | B6: ATLAS DIGITAL SA | C6: EL094154295 | D6: JP | E6: GR | F6: EXW | G6: 1 | H6: 1.1 | I6: 3 | K6: 32151900 | L6: ROLAND EUV5 INK WH 220cc | N6: Buc | O6: 6 | P6: 230.92 | Q6: 2.82 | R6: 1385.52 | S6: 2
A7: 2023-08-07 | B7: ATLAS DIGITAL SA | C7: EL094154295 | D7: JP | E7: GR | F7: EXW | G7: 1 | H7: 1.1 | I7: 3 | K7: 32151900 | L7: ROLAND D-UA INK CY, 500cc | N7: Buc | O7: 2 | P7: 240.96 | Q7: 0.94 | R7: 481.92 | S7: 2
A8: 2023-08-07 | B8: ATLAS DIGITAL SA | C8: EL094154295 | D8: JP | E8: GR | F8: EXW | G8: 1 | H8: 1.1 | I8: 3 | K8: 32151900 | L8: ROLAND D-UA INK MG, 500cc | N8: Buc | O8: 2 | P8: 240.96 | Q8: 0.94 | R8: 481.92 | S8: 2
A9: 2023-08-07 | B9: ATLAS DIGITAL SA | C9: EL094154295 | D9: JP | E9: GR | F9: EXW | G9: 1 | H9: 1.1 | I9: 3 | K9: 32151900 | L9: ROLAND D-UA INK YE, 500cc | N9: Buc | O9: 2 | P9: 240.96 | Q9: 0.94 | R9: 481.92 | S9: 2
A10: 2023-08-07 | B10: ATLAS DIGITAL SA | C10: EL094154295 | D10: JP | E10: GR | F10: EXW | G10: 1 | H10: 1.1 | I10: 3 | K10: 32151900 | L10: ROLAND D-UA INK GL, 500cc | N10: Buc | O10: 2 | P10: 240.96 | Q10: 0.94 | R10: 481.92 | S10: 2
A11: 2023-08-07 | B11: ATLAS DIGITAL SA | C11: EL094154295 | D11: JP | E11: GR | F11: EXW | G11: 1 | H11: 1.1 | I11: 3 | K11: 32151900 | L11: ROLAND D-UA INK WH, 220cc | N11: Buc | O11: 4 | P11: 125.5 | Q11: 1.88 | R11: 502 | S11: 2
A12: 2023-08-23 | B12: ATLAS DIGITAL SA | C12: EL094154295 | D12: JP | E12: GR | F12: EXW | G12: 1 | H12: 1.1 | I12: 3 | K12: 32151900 | L12: ROLAND EUV5 INK WH 220cc | N12: Buc | O12: 4 | P12: 230.46 | Q12: 1.88 | R12: 921.84 | S12: 2 | T12: =303*0.5 -> 151.5
A13: 2023-08-23 | B13: ATLAS DIGITAL SA | C13: EL094154295 | D13: JP | E13: GR | F13: EXW | G13: 1 | H13: 1.1 | I13: 3 | K13: 34029090 | L13: ROLAND TR2 CLEANING LIQUID_2 500cc | N13: Buc | O13: 4 | P13: 225.45 | Q13: 2.84 | R13: 901.8 | S13: 2 | T13: =303*0.05 -> 15.15
A14: 2023-08-07 | B14: ATLAS DIGITAL SA | C14: EL094154295 | D14: JP | E14: GR | F14: EXW | G14: 1 | H14: 1.1 | I14: 3 | K14: 84439990 | L14: ROLAND FRAME,PINCH ROLL SG-540 | N14: Buc | O14: 2 | P14: 20.88 | Q14: 0 | R14: 41.77 | S14: 2
A15: 2023-08-07 | B15: ATLAS DIGITAL SA | C15: EL094154295 | D15: JP | E15: GR | F15: EXW | G15: 1 | H15: 1.1 | I15: 3 | K15: 84439990 | L15: ROLAND ASSY,DAMPER DOUBLE CIR 3 CG2075 | N15: Buc | O15: 8 | P15: 215.36 | Q15: 0 | R15: 1722.86 | S15: 2
A16: 2023-08-07 | B16: ATLAS DIGITAL SA | C16: EL094154295 | D16: JP | E16: GR | F16: EXW | G16: 1 | H16: 1.1 | I16: 3 | K16: 84439990 | L16: ROLAND DAMPER,INK VS-640_1 | N16: Buc | O16: 8 | P16: 277.36 | Q16: 0 | R16: 2218.84 | S16: 2
A17: 2023-08-07 | B17: ATLAS DIGITAL SA | C17: EL094154295 | D17: JP | E17: GR | F17: EXW | G17: 1 | H17: 1.1 | I17: 3 | K17: 84439990 | L17: ROLAND GUIDE,CABLE FLEX-CUT XR-640 | N17: Buc | O17: 4 | P17: 14.01 | Q17: 0 | R17: 56.02 | S17: 2
A18: 2023-08-07 | B18: ATLAS DIGITAL SA | C18: EL094154295 | D18: JP | E18: GR | F18: EXW | G18: 1 | H18: 1.1 | I18: 3 | K18: 84439990 | L18: ROLAND WIPER,HEAD FELT VS-640 | N18: Buc | O18: 6 | P18: 45.68 | Q18: 0 | R18: 274.09 | S18: 2
A19: 2023-08-07 | B19: ATLAS DIGITAL SA | C19: EL094154295 | D19: JP | E19: GR | F19: EXW | G19: 1 | H19: 1.1 | I19: 3 | K19: 84439990 | L19: ROLAND CUTTING BLADE ZEC-U5022 55°/0.25, 2pcs | N19: Buc | O19: 6 | P19: 166.41 | Q19: 0 | R19: 998.48 | S19: 2
A20: 2023-08-23 | B20: ATLAS DIGITAL SA | C20: EL094154295 | D20: JP | E20: GR | F20: EXW | G20: 1 | H20: 1.1 | I20: 3 | K20: 84439990 | L20: ROLAND ASSY,HEAD INKJET VS-640 | N20: Buc | O20: 2 | P20: 7289.55 | Q20: 0 | R20: 14579.1 | S20: 2
A21: 2023-08-23 | B21: ATLAS DIGITAL SA | C21: EL094154295 | D21: JP | E21: GR | F21: EXW | G21: 1 | H21: 1.1 | I21: 3 | K21: 84439990 | L21: ROLAND ASSY,HEAD INKJET SV LEF2-300 | N21: Buc | O21: 3 | P21: 2570.13 | Q21: 0 | R21: 7710.39 | S21: 2
A22: 2023-08-23 | B22: ATLAS DIGITAL SA | C22: EL094154295 | D22: JP | E22: GR | F22: EXW | G22: 1 | H22: 1.1 | I22: 3 | K22: 84439990 | L22: ROLAND ASSY,HEAD INKJET SOL XC-540 SV2 | N22: Buc | O22: 4 | P22: 2259.51 | Q22: 0 | R22: 9038.04 | S22: 2
A23: 2023-08-23 | B23: ATLAS DIGITAL SA | C23: EL094154295 | D23: JP | E23: GR | F23: EXW | G23: 1 | H23: 1.1 | I23: 3 | K23: 84439990 | L23: ROLAND DAMPER,INK VS-640_1 | N23: Buc | O23: 4 | P23: 276.8 | Q23: 0 | R23: 1107.21 | S23: 2
A24: 2023-08-23 | B24: ATLAS DIGITAL SA | C24: EL094154295 | D24: JP | E24: GR | F24: EXW | G24: 1 | H24: 1.1 | I24: 3 | K24: 84439990 | L24: ROLAND ASSY,SCAN MOTOR RE-640_01 | N24: Buc | O24: 2 | P24: 1204.91 | Q24: 0 | R24: 2409.81 | S24: 2
A25: 2023-08-23 | B25: ATLAS DIGITAL SA | C25: EL094154295 | D25: JP | E25: GR | F25: EXW | G25: 1 | H25: 1.1 | I25: 3 | K25: 84439990 | L25: ROLAND ASSY,SCAN MOTOR VP-540 | N25: Buc | O25: 1 | P25: 1058.36 | Q25: 0 | R25: 1058.36 | S25: 2
A26: 2023-08-23 | B26: ATLAS DIGITAL SA | C26: EL094154295 | D26: JP | E26: GR | F26: EXW | G26: 1 | H26: 1.1 | I26: 3 | K26: 84439990 | L26: ROLAND XD-CH3 | N26: Buc | O26: 4 | P26: 240.48 | Q26: 0 | R26: 961.92 | S26: 2
A27: 2023-08-23 | B27: ATLAS DIGITAL SA | C27: EL094154295 | D27: JP | E27: GR | F27: EXW | G27: 1 | H27: 1.1 | I27: 3 | K27: 84439990 | L27: ROLAND CABLE-CARD,15P1 1900L BB SP-300 | N27: Buc | O27: 1 | P27: 87.93 | Q27: 0 | R27: 87.93 | S27: 2
A28: 2023-08-23 | B28: ATLAS DIGITAL SA | C28: EL094154295 | D28: JP | E28: GR | F28: EXW | G28: 1 | H28: 1.1 | I28: 3 | K28: 84439990 | L28: ROLAND CABLE-CARD,15P1 2570L BB | N28: Buc | O28: 2 | P28: 87.93 | Q28: 0 | R28: 175.85 | S28: 2
A29: 2023-08-23 | B29: ATLAS DIGITAL SA | C29: EL094154295 | D29: JP | E29: GR | F29: EXW | G29: 1 | H29: 1.1 | I29: 3 | K29: 84439990 | L29: ROLAND WIPER,HEAD VS-640/XR-640 | N29: Buc | O29: 20 | P29: 78.16 | Q29: 0 | R29: 1563.12 | S29: 2
A30: 2023-08-23 | B30: ATLAS DIGITAL SA | C30: EL094154295 | D30: JP | E30: GR | F30: EXW | G30: 1 | H30: 1.1 | I30: 3 | K30: 84439990 | L30: ROLAND ASSY,CAP-TOP VS-640_01 | N30: Buc | O30: 10 | P30: 227.96 | Q30: 0 | R30: 2279.55 | S30: 2
A31: 2023-08-23 | B31: ATLAS DIGITAL SA | C31: EL094154295 | D31: JP | E31: GR | F31: EXW | G31: 1 | H31: 1.1 | I31: 3 | K31: 84439990 | L31: ROLAND WIPER,HEAD FELT VS-640 | N31: Buc | O31: 12 | P31: 45.59 | Q31: 0 | R31: 547.09 | S31: 2
A32: 2023-08-23 | B32: ATLAS DIGITAL SA | C32: EL094154295 | D32: JP | E32: GR | F32: EXW | G32: 1 | H32: 1.1 | I32: 3 | K32: 84439990 | L32: ROLAND ASSY,PULLEY DRIVE GS-24 | N32: Buc | O32: 4 | P32: 97.7 | Q32: 0 | R32: 390.78 | S32: 2
A33: 2023-08-23 | B33: ATLAS DIGITAL SA | C33: EL094154295 | D33: JP | E33: GR | F33: EXW | G33: 1 | H33: 1.1 | I33: 3 | K33: 84439990 | L33: ROLAND CUTTING BLADE ZEC-U5022 55°/0.25, 2pcs | N33: Buc | O33: 2 | P33: 166.08 | Q33: 0 | R33: 332.16 | S33: 2
A34: 2023-08-23 | B34: ATLAS DIGITAL SA | C34: EL094154295 | D34: JP | E34: GR | F34: EXW | G34: 1 | H34: 1.1 | I34: 3 | K34: 84439990 | L34: ROLAND NUT SET,SQUARE M6*11*3 3C 50PCS | N34: Buc | O34: 1 | P34: 32.57 | Q34: 0 | R34: 32.57 | S34: 2
A35: 2023-08-23 | B35: ATLAS DIGITAL SA | C35: EL094154295 | D35: JP | E35: GR | F35: EXW | G35: 1 | H35: 1.1 | I35: 3 | K35: 84439990 | L35: ROLAND ASSY,PRESS PUMP SUB SV3 CG2125 | N35: Buc | O35: 6 | P35: 299.6 | Q35: 25 | R35: 1797.59 | S35: 2 | T35: =303*0.35 -> 106.05
A36: 2023-08-09 | B36: BMG MEDIA SOURCE | C36: DE288855581 | D36: JP | E36: DE | F36: EXW | G36: 1 | H36: 1.1 | I36: 3 | K36: 84439990 | L36: ROLAND PAD,CUTTER VP-540/SP-540i | N36: Buc | O36: 10 | P36: 60.74 | Q36: 0 | R36: 607.42 | S36: 2
A37: 2023-08-09 | B37: BMG MEDIA SOURCE | C37: DE288855581 | D37: JP | E37: DE | F37: EXW | G37: 1 | H37: 1.1 | I37: 3 | K37: 84439990 | L37: ROLAND PAD,CUTTER GX-24 | N37: Buc | O37: 10 | P37: 38.65 | Q37: 0 | R37: 386.54 | S37: 2
A38: 2023-08-09 | B38: BMG MEDIA SOURCE | C38: DE288855581 | D38: JP | E38: DE | F38: EXW | G38: 1 | H38: 1.1 | I38: 3 | K38: 84439990 | L38: ROLAND WIPER,HEAD FELT VS-640 | N38: Buc | O38: 2 | P38: 36.14 | Q38: 3 | R38: 72.29 | S38: 2 | T38: =17.53*5 -> 87.65
A39: 2023-08-07 | B39: BROTHER INT INDUSTRIEMASCHINEN GMBH | C39: DE814895445 | D39: JP | E39: DE | F39: EXW | G39: 1 | H39: 1.1 | I39: 3 | K39: 29094100 | L39: BROTHER GTX PRE-TREATMENT 20Kg (17,5 Lt) | N39: Buc | O39: 4 | P39: 2104.38 | Q39: 48 | R39: 8417.54 | S39: 2
A40: 2023-08-31 | B40: BROTHER INT INDUSTRIEMASCHINEN GMBH | C40: DE814895445 | D40: JP | E40: DE | F40: EXW | G40: 1 | H40: 1.1 | I40: 3 | K40: 29094100 | L40: BROTHER GTX PRE-TREATMENT 20Kg (17,5 Lt) | N40: Buc | O40: 6 | P40: 2100.19 | Q40: 72 | R40: 12601.15 | S40: 2 | T40: =3178.54*0.1 -> 317.854
A41: 2023-08-10 | B41: BROTHER INT INDUSTRIEMASCHINEN GMBH | C41: DE814895445 | D41: JP | E41: DE | F41: EXW | G41: 1 | H41: 1.1 | I41: 3 | K41: 32151100 | L41: BROTHER GT-3 INK BLACK 380cc | N41: Buc | O41: 2 | P41: 621.98 | Q41: 2.1 | R41: 1243.96 | S41: 2
A42: 2023-08-31 | B42: BROTHER INT INDUSTRIEMASCHINEN GMBH | C42: DE814895445 | D42: JP | E42: DE | F42: EXW | G42: 1 | H42: 1.1 | I42: 3 | K42: 32151100 | L42: BROTHER GTX INK 1.8L BLACK | N42: Buc | O42: 2 | P42: 1375.25 | Q42: 4.2 | R42: 2750.49 | S42: 2 | T42: =3178.54*0.1 -> 317.854
A43: 2023-08-07 | B43: BROTHER INT INDUSTRIEMASCHINEN GMBH | C43: DE814895445 | D43: JP | E43: DE | F43: EXW | G43: 1 | H43: 1.1 | I43: 3 | K43: 32151900 | L43: BROTHER GT-3 INK WHITE 380cc (2 pcs) | N43: Buc | O43: 5 | P43: 1044.16 | Q43: 11.75 | R43: 5220.8 | S43: 2
A44: 2023-08-07 | B44: BROTHER INT INDUSTRIEMASCHINEN GMBH | C44: DE814895445 | D44: JP | E44: DE | F44: EXW | G44: 1 | H44: 1.1 | I44: 3 | K44: 32151900 | L44: BROTHER GTX INK YELLOW 700cc | N44: Buc | O44: 12 | P44: 734.43 | Q44: 16.2 | R44: 8813.11 | S44: 2
A45: 2023-08-31 | B45: BROTHER INT INDUSTRIEMASCHINEN GMBH | C45: DE814895445 | D45: JP | E45: DE | F45: EXW | G45: 1 | H45: 1.1 | I45: 3 | K45: 32151900 | L45: BROTHER GTX INK WHITE 700cc (2 pcs) | N45: Buc | O45: 30 | P45: 1227.05 | Q45: 87 | R45: 36811.48 | S45: 2
A46: 2023-08-31 | B46: BROTHER INT INDUSTRIEMASCHINEN GMBH | C46: DE814895445 | D46: JP | E46: DE | F46: EXW | G46: 1 | H46: 1.1 | I46: 3 | K46: 32151900 | L46: BROTHER GT-3 INK WHITE 380cc (2 pcs) | N46: Buc | O46: 5 | P46: 1042.08 | Q46: 11.75 | R46: 5210.4 | S46: 2
A47: 2023-08-31 | B47: BROTHER INT INDUSTRIEMASCHINEN GMBH | C47: DE814895445 | D47: JP | E47: DE | F47: EXW | G47: 1 | H47: 1.1 | I47: 3 | K47: 32151900 | L47: BROTHER GTX INK 18L WHITE (GTX BULK) | N47: Buc | O47: 1 | P47: 8582.13 | Q47: =1.05*18 -> 18.9 | R47: 8582.13 | S47: 2
A48: 2023-08-31 | B48: BROTHER INT INDUSTRIEMASCHINEN GMBH | C48: DE814895445 | D48: JP | E48: DE | F48: EXW | G48: 1 | H48: 1.1 | I48: 3 | K48: 32151900 | L48: BROTHER GTX INK CYAN 700cc | N48: Buc | O48: 12 | P48: 732.96 | Q48: 12.6 | R48: 8795.56 | S48: 2 | T48: =3178.54*0.2 -> 635.708
A49: 2023-08-07 | B49: BROTHER INT INDUSTRIEMASCHINEN GMBH | C49: DE814895445 | D49: JP | E49: DE | F49: EXW | G49: 1 | H49: 1.1 | I49: 3 | K49: 34029090 | L49: BROTHER FULL MAINTENANCE KIT (GT3) | N49: Set | O49: 6 | P49: 216.86 | Q49: 6 | R49: 1301.18 | S49: 2
A50: 2023-08-31 | B50: BROTHER INT INDUSTRIEMASCHINEN GMBH | C50: DE814895445 | D50: JP | E50: DE | F50: EXW | G50: 1 | H50: 1.1 | I50: 3 | K50: 34029090 | L50: BROTHER GTX GCX-4E05 CLEANING SOL. 5L | N50: Buc | O50: 4 | P50: 533.57 | Q50: 16.4 | R50: 2134.26 | S50: 2
A51: 2023-08-31 | B51: BROTHER INT INDUSTRIEMASCHINEN GMBH | C51: DE814895445 | D51: JP | E51: DE | F51: EXW | G51: 1 | H51: 1.1 | I51: 3 | K51: 34029090 | L51: BROTHER FULL MAINTENANCE KIT (GTX) | N51: Buc | O51: 3 | P51: 189.38 | Q51: 0 | R51: 568.13 | S51: 2 | T51: =3178.54*0.1 -> 317.854
A52: 2023-08-28 | B52: BROTHER INT INDUSTRIEMASCHINEN GMBH | C52: DE814895445 | D52: JP | E52: DE | F52: EXW | G52: 1 | H52: 1.1 | I52: 3 | K52: 84433900 | L52: BROTHER GTX-423 PRO GARMENT PRINTER | N52: Buc | O52: 1 | P52: 59038.24 | Q52: 92.5 | R52: 59038.24 | S52: 2 | T52: =3178.54*0.4 -> 1271.416
A53: 2023-08-07 | B53: BROTHER INT INDUSTRIEMASCHINEN GMBH | C53: DE814895445 | D53: JP | E53: DE | F53: EXW | G53: 1 | H53: 1.1 | I53: 3 | K53: 84439990 | L53: BROTHER FFC: CARRIAGE POWER (GT3) | N53: Buc | O53: 2 | P53: 89.26 | Q53: 0 | R53: 178.51 | S53: 2
A54: 2023-08-07 | B54: BROTHER INT INDUSTRIEMASCHINEN GMBH | C54: DE814895445 | D54: JP | E54: DE | F54: EXW | G54: 1 | H54: 1.1 | I54: 3 | K54: 84439990 | L54: BROTHER WIPER HOLDER SUPPLY ASSY (GTX/PRO) | N54: Buc | O54: 3 | P54: 185.04 | Q54: 0 | R54: 555.11 | S54: 2
A55: 2023-08-07 | B55: BROTHER INT INDUSTRIEMASCHINEN GMBH | C55: DE814895445 | D55: JP | E55: DE | F55: EXW | G55: 1 | H55: 1.1 | I55: 3 | K55: 84439990 | L55: BROTHER FFC: CARRIAGE SIGNAL (GT3) | N55: Buc | O55: 1 | P55: 110.19 | Q55: 0 | R55: 110.19 | S55: 2
A56: 2023-08-07 | B56: BROTHER INT INDUSTRIEMASCHINEN GMBH | C56: DE814895445 | D56: JP | E56: DE | F56: EXW | G56: 1 | H56: 1.1 | I56: 3 | K56: 84439990 | L56: BROTHER CARRIAGE PCB ASSY (GTX) | N56: Buc | O56: 1 | P56: 351.05 | Q56: 0 | R56: 351.05 | S56: 2
A57: 2023-08-09 | B57: BROTHER INT INDUSTRIEMASCHINEN GMBH | C57: DE814895445 | D57: JP | E57: DE | F57: EXW | G57: 1 | H57: 1.1 | I57: 3 | K57: 84439990 | L57: BROTHER MAIN SUPPLY PCB (GTX) | N57: Buc | O57: 1 | P57: 1910.91 | Q57: 0 | R57: 1910.91 | S57: 2
A58: 2023-08-28 | B58: BROTHER INT INDUSTRIEMASCHINEN GMBH | C58: DE814895445 | D58: JP | E58: DE | F58: EXW | G58: 1 | H58: 1.1 | I58: 3 | K58: 84439990 | L58: BROTHER STAND, GTX -50.0156.40 VKF | N58: Buc | O58: 1 | P58: 4819.22 | Q58: 0 | R58: 4819.22 | S58: 2
A59: 2023-08-31 | B59: BROTHER INT INDUSTRIEMASCHINEN GMBH | C59: DE814895445 | D59: JP | E59: DE | F59: EXW | G59: 1 | H59: 1.1 | I59: 3 | K59: 84439990 | L59: BROTHER FILTER FELT KIT (GT3) | N59: Set | O59: 2 | P59: 96.19 | Q59: 17 | R59: 192.38 | S59: 2 | T59: =3178.54*0.1 -> 317.854
A60: 2023-08-29 | B60: ISOCARBO SRL | C60: IT01487730135 | D60: IT | E60: IT | F60: EXW | G60: 1 | H60: 1.1 | I60: 3 | K60: 32151100 | L60: ISONIK ST-E44 EVO ISO BK (1 KG) | N60: Buc | O60: 6 | P60: 125.25 | Q60: =6*0.3 -> 1.8 | R60: 751.5 | S60: 2 | T60: =669.5*0.1 -> 66.95
A61: 2023-08-11 | B61: ISOCARBO SRL | C61: IT01487730135 | D61: IT | E61: IT | F61: EXW | G61: 1 | H61: 1.1 | I61: 3 | K61: 32151900 | L61: ISONIK ST-E44 EVO CY (1 KG) | N61: Buc | O61: 12 | P61: 125.5 | Q61: =0.6*12 -> 7.2 | R61: 1506 | S61: 2
A62: 2023-08-11 | B62: ISOCARBO SRL | C62: IT01487730135 | D62: IT | E62: IT | F62: EXW | G62: 1 | H62: 1.1 | I62: 3 | K62: 32151900 | L62: ISONIK ST-E44 EVO MG (1 KG) | N62: Buc | O62: 9 | P62: 125.5 | Q62: =0.45*9 -> 4.05 | R62: 1129.5 | S62: 2
A63: 2023-08-11 | B63: ISOCARBO SRL | C63: IT01487730135 | D63: IT | E63: IT | F63: EXW | G63: 1 | H63: 1.1 | I63: 3 | K63: 32151900 | L63: ISONIK ST-E44 EVO YE (1 KG) | N63: Buc | O63: 9 | P63: 125.5 | Q63: =0.45*9 -> 4.05 | R63: 1129.5 | S63: 2
A64: 2023-08-29 | B64: ISOCARBO SRL | C64: IT01487730135 | D64: IT | E64: IT | F64: EXW | G64: 1 | H64: 1.1 | I64: 3 | K64: 32151900 | L64: ISONIK ST-E44 EVO CY (1 KG) | N64: Buc | O64: 2 | P64: 125.25 | Q64: =0.1*2 -> 0.2 | R64: 250.5 | S64: 2
A65: 2023-08-29 | B65: ISOCARBO SRL | C65: IT01487730135 | D65: IT | E65: IT | F65: EXW | G65: 1 | H65: 1.1 | I65: 3 | K65: 32151900 | L65: ISONIK ST-E44 EVO MG (1 KG) | N65: Buc | O65: 2 | P65: 125.25 | Q65: =0.1*2 -> 0.2 | R65: 250.5 | S65: 2
A66: 2023-08-29 | B66: ISOCARBO SRL | C66: IT01487730135 | D66: IT | E66: IT | F66: EXW | G66: 1 | H66: 1.1 | I66: 3 | K66: 32151900 | L66: ISONIK ST-E44 EVO YE (1 KG) | N66: Buc | O66: 2 | P66: 125.25 | Q66: =0.1*2 -> 0.2 | R66: 250.5 | S66: 2 | T66: =669.5*0.9 -> 602.55
A67: 2023-08-31 | B67: STAHLS EUROPE GMBH | C67: DE137872290 | D67: DE | E67: DE | F67: EXW | G67: 1 | H67: 1.1 | I67: 3 | K67: 84519000 | L67: ST SP, DISPLAY-BOARD XF IQ GEN2 | N67: Buc | O67: 1 | P67: 1499.24 | Q67: 2 | R67: 1499.24 | S67: 2 | T67: 100
A68: 2023-08-03 | B68: THOMANN GMBH | C68: DE257375233 | D68: DE | E68: DE | F68: EXW | G68: 1 | H68: 1.1 | I68: 3 | K68: 92099400 | L68: OBIECT DE INVENTAR/IMOBILIZARI | N68: Buc | O68: 1 | P68: 2226.47 | Q68: 0 | R68: 2226.47 | S68: 2
A69: 2023-08-03 | B69: THOMANN GMBH | C69: DE257375233 | D69: DE | E69: DE | F69: EXW | G69: 1 | H69: 1.1 | I69: 3 | K69: 92099400 | L69: OBIECT DE INVENTAR/IMOBILIZARI | N69: Buc | O69: 1 | P69: 2226.47 | Q69: 13 | R69: 2226.47 | S69: 2 | T69: 0
A70: 2023-08-02 | B70: VALIANI S.R.L. | C70: IT05277940481 | D70: IT | E70: IT | F70: EXW | G70: 1 | H70: 1.1 | I70: 3 | K70: 84439990 | L70: VALIANI BEVELCUT TOOL - GREEN HEAD 40 | N70: Buc | O70: 1 | P70: 4200 | Q70: 0 | R70: 4200 | S70: 2
A71: 2023-08-02 | B71: VALIANI S.R.L. | C71: IT05277940481 | D71: IT | E71: IT | F71: EXW | G71: 1 | H71: 1.1 | I71: 3 | K71: 84439990 | L71: VALIANI BLADE TANGENTIAL STEEL L100 SET (100 PCS) | N71: Buc | O71: 1 | P71: 311.5 | Q71: 11 | R71: 311.5 | S71: 2 | T71: 250
A72: 2023-08-11 | B72: WALTER SCHULZE GMBH | C72: DE136596684 | D72: DE | E72: DE | F72: EXW | G72: 1 | H72: 1.1 | I72: 3 | K72: 84439990 | L72: SCH CAP PRESS 8x16 cm | N72: Buc | O72: 1 | P72: 560.99 | Q72: 0 | R72: 560.99 | S72: 2
A73: 2023-08-11 | B73: WALTER SCHULZE GMBH | C73: DE136596684 | D73: DE | E73: DE | F73: EXW | G73: 1 | H73: 1.1 | I73: 3 | K73: 84439990 | L73: SCH SLEEVE PLATEN, 10 x 45 cm | N73: Buc | O73: 1 | P73: 3971.82 | Q73: 7 | R73: 3971.82 | S73: 2 | T73: 147.65

Sheet Sheet
